Cogmind - Beta 15 @@@ ROGUE MODE // 2025.07.15 @ 15:02:17 Player: Morgan Result: Destroyed by as-47667 with Assembled Maul Performance ------------- Evolutions (0) 0 Regions Visited (2) 400 Robots Destroyed (5) 25 Value Destroyed (66) 66 Prototype IDs (0) 0 Alien Tech Used (0) 0 Bonus (0) 0 TOTAL SCORE: 491 Bonus ------- None Cogmind --------- Core Integrity 0/250 Matter 300/300 Energy 100/100 System Corruption 8% Temperature Cool (0) Movement Core (150) Ox2 Location -10/Mines Parts ------- > --- POWER (1) -------- (None) > --- PROPULSION (2) --- (None) > --- UTILITY (2) ------ Small Storage Unit Tractor Beam > --- WEAPON (2) ------- EM Pulse Gun > --- INVENTORY (8) ---- Ion Engine Improved Terrain Scanner Medium Laser Small Laser Peak State ------------ > --- POWER ------------ Ion Engine > --- PROPULSION ------- Light Treads Light Treads > --- UTILITY ---------- Small Storage Unit Tractor Beam > --- WEAPON ----------- EM Pulse Gun EM Pulse Gun > --- INVENTORY -------- Ion Engine Medium Laser Small Laser [Rating: 7] Favorites ----------- Power Ion Engine Engine Ion Engine Propulsion Light Treads Treads Light Treads Utility Small Storage Unit Device Tractor Beam Storage Small Storage Unit Weapon EM Pulse Gun Energy Gun EM Pulse Gun Ballistic Gun Light Assault Rifle Build | -11 -10 -10 ------- Run | Yrd Mat Min Slots Evolved . | . . . Power . | . . . Propulsion . | . . . Utility . | . . . Weapon . | . . . Parts Attached 15 | 7 4 4 Power 1 | 1 . . Engine 1 | 1 . . Core . | . . . Reactor . | . . . Propulsion 2 | 2 . . Treads 2 | 2 . . Leg . | . . . Wheel . | . . . Hover . | . . . Flight . | . . . Utility 2 | 1 1 . Device 1 | . 1 . Storage 1 | 1 . . Processor . | . . . Hackware . | . . . Protection . | . . . Artifact . | . . . Weapon 10 | 3 3 4 Energy Gun 8 | 3 3 2 Energy Cannon . | . . . Ballistic Gun 2 | . . 2 Ballistic Cannon . | . . . Launcher . | . . . Special Weapon . | . . . Impact Weapon . | . . . Slashing Weapon . | . . . Piercing Weapon . | . . . Special Melee Weapon . | . . . Unidentified Prototypes . | . . . Parts Lost 10 | . 3 7 Power 1 | . . 1 Propulsion 2 | . . 2 Utility . | . . . Weapon 7 | . 3 4 Highest Loss Streak 5 | . 2 5 To Critical Strikes . | . . . Average Backups 3 | 1 3 4 Power . | . 1 1 Propulsion . | . . . Utility . | . . . Weapon 2 | . 2 3 Tool/Special . | . . . Unused Backups 1 | . . 1 Power 1 | . . 1 Propulsion . | . . . Utility . | . . . Weapon . | . . . Tool/Special . | . . . Average Slot Usage (%) 93 | . 97 89 Engine 14 | . 14 14 Treads 24 | . 28 20 Device 12 | . 11 14 Storage 14 | . 14 14 Energy Gun 18 | . 28 8 Ballistic Gun 8 | . . 16 Peak Build Rating 7 | 6 7 7 Average Rating 6 | 4 6 6 On Entrance 4 | . 6 6 Naked Turns . | . . . Heaviest Build 15 | 14 15 15 Greatest Support 40 | 40 40 40 Greatest Overweight (x) 4 | . . 4 Average Overweight (x) . | . . . Largest Inventory Capacity 8 | 8 8 8 Average Capacity 7 | 7 8 8 Most Carried 6 | 5 5 6 Average Carried 3 | 1 3 4 Final Capacity 8 | 8 8 8 Final Carried 5 | 2 5 4 Class Distribution -------------------- 100% | Mutant Dominant Class ---------------- Mutant | -10/Materials Mutant | -10/Mines Resources | -11 -10 -10 ----------- Run | Yrd Mat Min Matter Collected 403 | 186 7 210 Remotely 217 | . 7 210 Salvage Created 157 | . 37 120 Parts 9 | . 3 6 Haulers Intercepted . | . . . Recyclers Shooed . | . . . Parts Field Recycled . | . . . Retrieved Matter . | . . . Parts Self-Destructed . | . . . Prevented . | . . . Kills | -11 -10 -10 ------- Run | Yrd Mat Min Combat Hostiles Destroyed 9 | . 1 8 Guns 8 | . . 8 AOE 1 | . 1 . Classes Destroyed 3 | . 2 1 Watcher 1 | . 1 . Swarmer 4 | . 1 3 Assembled 5 | . . 5 Best Kill Streak 3 | . 1 3 Combat Bots Only 3 | . 1 3 Max Kills in Single Turn 1 | . 1 1 Gunslinging . | . . . Exploded 1 | . 1 . Melee . | . . . Uniques/NPCs Destroyed . | . . . Combat | -11 -10 -10 -------- Run | Yrd Mat Min Hostile Shots Fired 103 | . 44 59 Missed 26 | . 16 10 Hits 77 | . 28 49 Melee 6 | . . 6 Projectile 71 | . 28 43 Critical Strikes 1 | . . 1 Part Disruptions 4 | . . 4 Damage Taken 1015 | . 318 697 Core 263 | . 52 211 Absorbed by Shields . | . . . Core Remaining (%) 100 | 100 . . Volleys Fired 64 | . 20 44 Largest 2 | . 2 2 Hottest 90 | . 90 80 Shots Fired 107 | . 40 67 Gun 107 | . 40 67 Cannon . | . . . Launcher . | . . . Special . | . . . Kinetic 48 | . . 48 Thermal 8 | . 8 . Explosive . | . . . Electromagnetic 51 | . 32 19 Robot Hit Streak 8 | . 2 8 Robot Miss Streak 5 | . 4 5 Penetration Max . | . . . Secondary Targets 1 | . . 1 Max Gunslinging Chain 1 | . . 1 Shots Hit Robots 36 | . 4 32 Core Hits 19 | . 1 18 Critical Kills 1 | . . 1 Critical Parts Destroyed . | . . . Critical Strikes 1 | . . 1 Destroy 1 | . . 1 Melee Attacks . | . . . Impact . | . . . Slashing . | . . . Piercing . | . . . Sneak Attacks . | . . . Combat Hostiles . | . . . Follow-up Attacks . | . . . Damage Inflicted 610 | 7 328 275 Guns 354 | . 79 275 Cannons . | . . . Explosions 249 | . 249 . Melee . | . . . Ramming 7 | 7 . . Kinetic 198 | . . 198 Thermal 274 | . 274 . Explosive . | . . . Electromagnetic 131 | . 54 77 Impact . | . . . Slashing . | . . . Piercing . | . . . Highest Corruption 8 | . . 8 Average Corruption 5 | . . 5 Corruption Purged . | . . . Corruption Blocked . | . . . Effects 4 | . . 4 Matter Fused 1 | . . 1 Heat Flow Errors 2 | . . 2 Data Loss (minor) 1 | . . 1 Overload Shots . | . . . Overflow Damage 229 | . 229 . Projectiles . | . . . Explosions 229 | . 229 . Melee . | . . . Knockbacks . | . . . Impact . | . . . Kinetic . | . . . Secondary . | . . . Self-Inflicted Damage 93 | . 93 . Shots 1 | . 1 . Rammed 1 | 1 . . Targets Rammed 1 | 1 . . Kicked . | . . . Crushed . | . . . Highest Temperature 209 | . 162 209 Average Temperature 59 | . 64 52 Received Heat Transfer 334 | . 54 280 Siege Activations . | . . . Martial Activations . | . . . Shielding Activations . | . . . Robots Disrupted . | . . . Combat Hostiles . | . . . Robots Corrupted . | . . . Combat Hostiles . | . . . Parts Fried . | . . . Impact Corruptions . | . . . Robots Melted . | . . . Combat Hostiles . | . . . Parts Melted . | . . . Heat Transferred 212 | . 212 . Parts Sabotaged . | . . . Parts Stolen . | . . . Parts Stripped . | . . . Power Chain Reactions . | . . . Alert | -11 -10 -10 ------- Run | Yrd Mat Min Maximum Alert Level . | . . . Low Security (%) 100 | 100 100 100 Level 1 . | . . . Level 2 . | . . . Level 3 . | . . . Level 4 . | . . . Level 5 . | . . . High Security . | . . . Max Security . | . . . Peak Influence 52 | . 52 40 Initial 8 | . . 8 Average 9 | . 12 9 Influence Increases 170 | . 100 70 Destroy 0b10 Robot/C 80 | . 20 60 Destroy 0b10 Robot/NC 5 | . 5 . Destroy Leader 12 | . 2 10 Disable Machine 15 | . 15 . Destroy Structure 28 | . 28 . Lose Combat Pursuer 30 | . 30 . Influence Decreases 170 | . 78 92 Entered New Map 14 | . . 14 Time Decay 118 | . 50 68 Lost Part 38 | . 28 10 Squads Dispatched 2 | . 2 . Investigation 1 | . 1 . Extermination . | . . . Reinforcement 1 | . 1 . Assault . | . . . Garrison . | . . . Intercept . | . . . Searches Triggered . | . . . Construction Impeded . | . . . Haulers Reinforced . | . . . Active Scanning Responses . | . . . Cargo Convoy Interrupts . | . . . Stealth | -11 -10 -10 --------- Run | Yrd Mat Min Distress Signals 1 | . 1 . Communications Jammed . | . . . Distress Signals . | . . . Times Spotted 26 | . 11 15 Peak Tracking Total 5 | . 4 5 Tactical Retreats 4 | . 2 2 Traps | -11 -10 -10 ------- Run | Yrd Mat Min Traps Triggered . | . . . Indirectly . | . . . Trap Hack Attempts . | . . . Triggered . | . . . Disarmed . | . . . Reprogrammed . | . . . Reused . | . . . Traps Extracted . | . . . Installed . | . . . Triggered . | . . . Machines | -11 -10 -10 ---------- Run | Yrd Mat Min Machines Disabled 1 | . 1 . Max in Single Turn 1 | . 1 . Machines Repaired . | . . . Machines Dismantled . | . . . Machines Sabotaged . | . . . Overloaded Fab Kills . | . . . Hacking | -11 -10 -10 --------- Run | Yrd Mat Min Machines Accessed 1 | . 1 . Terminals . | . . . Fabricators . | . . . Repair Stations . | . . . Recycling Units 1 | . 1 . Scanalyzers . | . . . Garrison Access . | . . . Total Hacks 3 | . 3 . Successful . | . . . Failed 3 | . 3 . Catastrophic . | . . . Database Lockouts . | . . . Manual . | . . . Terminals . | . . . Fabricators . | . . . Repair Stations . | . . . Recycling Units 3 | . 3 . Scanalyzers . | . . . Garrison Access . | . . . Terminal Hacks . | . . . Fabricator Hacks . | . . . Repair Station Hacks . | . . . Recycling Unit Hacks . | . . . Scanalyzer . | . . . Garrison Access Hacks . | . . . Unauthorized Hacks . | . . . Terminals . | . . . Fabricators . | . . . Repair Stations . | . . . Recycling Units . | . . . Scanalyzers . | . . . Garrison Access . | . . . Data Cores Recovered . | . . . Used . | . . . Hacking Detections 1 | . 1 . Full Trace Events . | . . . Feedback Events . | . . . Feedback Blocked . | . . . Robot Schematics Acquired . | . . . Robots Built . | . . . Authchips . | . . . Time . | . . . Total Robot Build Rating . | . . . Part Schematics Acquired . | . . . Parts Built . | . . . Authchips . | . . . Time . | . . . Total Part Build Rating . | . . . Parts Repaired . | . . . Time . | . . . Parts Recycled . | . . . Recycled Matter . | . . . Retrieved Matter . | . . . Retrieved Components . | . . . Parts Scanalyzed . | . . . Part Schematics Acquired . | . . . Parts Damaged . | . . . Bothacking | -11 -10 -10 ------------ Run | Yrd Mat Min Used RIF Installer . | . . . Robots Hacked . | . . . Non-combat . | . . . Combat . | . . . Robot Hacks Applied . | . . . Relay Couplers Released . | . . . Fabnet Peak Effective % . | . . . Robots Rewired . | . . . Allies Hacked . | . . . Hacks Repelled . | . . . Allies | -11 -10 -10 -------- Run | Yrd Mat Min Total Allies . | . . . Largest Group . | . . . Highest-Rated Group . | . . . Highest-Rated Ally . | . . . Total Orders . | . . . Ally Attacks . | . . . Total Damage . | . . . Kills . | . . . Allies Corrupted . | . . . Allies Melted . | . . . Intel | -11 -10 -10 ------- Run | Yrd Mat Min Active Infowar (turns) . | . . . Robot Analysis Total . | . . . Derelict Logs Recovered . | . . . Drone Launches . | . . . Drone Recoveries . | . . . Exploration | -11 -10 -10 ------------- Run | Yrd Mat Min Turns Passed 684 | 83 301 300 Spaces Moved 310 | 54 143 113 Core 31 | 18 . 13 Treads 279 | 36 143 100 Legs . | . . . Wheels . | . . . Hover . | . . . Flight . | . . . Fastest Speed 50 | 50 160 160 Average Speed 156 | 123 160 169 Slowest Speed 250 | 160 160 250 Overloaded Moves . | . . . Propulsion Burnouts . | . . . Robots Hopped . | . . . Potential Cave-ins . | . . . Cave-ins Triggered 1 | . . 1 Exploration Rate (%) 18 | 4 23 28 Regions Visited 2 Branch Regions 1 Pre-discovered Areas . | . . . Known Exits Taken . | . . . Unknown Exits Taken 2 | 1 1 . Scrap Searched . | . . . Spaces Dug . | . . . Terrain Destroyed 27 | . 27 . Melee . | . . . Projectile . | . . . AOE 27 | . 27 . Terrain Rammed . | . . . Walls Destroyed . | . . . Machines Disabled . | . . . Actions | -11 -10 -10 --------- Run | Yrd Mat Min Total 408 | 69 174 165 Wait . | . . . Move 308 | 53 142 113 Hop . | . . . Pick Up 17 | 8 6 3 Fast Attach . | . . . Attach 13 | 6 3 4 Detach . | . . . Swap 5 | 1 3 1 Drop . | . . . Fire 64 | . 20 44 Melee . | . . . Ram . | . . . Kick . | . . . Crush 1 | 1 . . Escape Stasis . | . . . Rewire . | . . . Trap . | . . . Miscellaneous . | . . . Route ------- -11/Scrapyard -10/Materials -10/Mines History --------- Turn | Location | Event 7 | -11/Scrapyard | Discovered new exit (range 15) 84 | -11/Scrapyard | Entered Materials 85 | -10/Materials | Met a group of wandering Federalists 167 | -10/Materials | Discovered new exit (range 15) 315 | -10/Materials | Build established: Mutant 385 | -10/Materials | Entered Mines 400 | -10/Mines | Assembled infested the area 611 | -10/Mines | Core integrity fell below 50% 657 | -10/Mines | Crushed by falling debris 663 | -10/Mines | Core integrity fell below 20% 674 | -10/Mines | Received a Rocket Launcher from a helpful Derelict 685 | -10/Mines | Destroyed by as-47667 with Assembled Maul Last Messages --------------- you need a mining laser when you travel the depths." 07-WUB(g): "You know what I say? NO!" 07-WUB(g): "Everyone knows a good old rocket launcher goes a long way." K-01 Serf destroyed. Acquired 10 matter. The unstable cave ceiling collapses. EM Pulse Gun destroyed. as-33083 destroyed. 07-WUB(g): "Need to get rid of a swarm? Done. Need a big hole in the wall? Done." System corrupted: Heat flow error (+229). 07-WUB(g): "Need a small hole in the wall? Leave that to the mining laser wimps, I say!" 07-WUB(g): "Would you like a rocket launcher? I know I would if I were you, so I'm going to lend you mine." 07-WUB(g) slips back into the shadows. Ion Engine destroyed. Map ----- +----------------------------------------------------+ | ?????????????????????????????????????????????????? | | ?????????????????????????????????????????????????? | | ?????????????????????????????????????????????????? | | ?????????????????????????????????????????????????? | | ?????????????????????????????????????????????????? | | ?????????????????????????????????????????????????? | | ?????????????????????????????????????????????????? | | ?????????????????????????????????????????????????? | | ?????????????????????????????????????????????????? | | ???????????????????????# ????????????????????????? | | ???????????????????????# ????????????????????????? | | ???????????????????????# ????????????????????????? | | ???????????????????????# ????????????????????????? | | ???????????????????????# ????????????????????????? | | ??????????????????###### ???###??????????????????? | | ??????????????????? ???# ??????????????????? | | ????????????????????? ####%#??????????????????? | | ??????????????????????## #% #??????????????????? | | ?????????????????#???## ###????????????????? | | ?????????????????? ?? ## = #????????????????? | | ???????????????????# #??# ###% ##???????????????? | | ???????????????????# ## a % #???????????????? | | ?????????????????????# # ####?????????????? | | ?????????????????????# ## ## * #???####??????? | | ?????????????????????###a! # ### #??# ???????? | | ??????????????????????#%]@ # ##?# #?? #????????? | | ?????????????????????# ###???# #?" #?????????? | | ??????????????????? ##?????# ## ##????????? | | ???????????????? % #??????# #????????? | | ???????????????## ??????## # #???????? | | ????????????????# ???????# ## #??????? | | ???????????????# ???????# #?# #??????? | | ???????????????# ???????# #??# ##??????? | | ???????????????# ???##### #???##???????? | | ???????????????# ???# #????????????? | | ???????????????## #??# #####????????????? | | ????????????????### #####??# #????????????????? | | ??????????????????## #????#### #????????????????? | | ???????????????????###????## ##???????????????? | | ?????????????????????????## ##??????????????? | | ????????????????????????## #??????????????? | | ????????????????????????# #??????????????? | | ????????????????????????# ##??????????????? | | ????????????????????????## ##???????????????? | | ?????????????????????????## ##???#########????? | | ??????????????????????????## #????# #????? | | ???????????????????????????# ##????# ##### #????? | | ???????????????????????????# ##????# #???# #????? | | ???????????????????????????# ##???# #???# ###??? | | ????????????????????###???## = ##### #?### ##?? | +----------------------------------------------------+ Best States ------------- Heat Dissipation 25 Energy Generation 10 Energy Capacity 250 Matter Stores 300 Matter Capacity 300 Sight Range 16 Terrain Scan Density 10 Evasion (%) 40 Recoil Reduction 2 Item Schematics ----------------- None Robot Schematics ------------------ None Fabricated ------------ Nothing Repaired ---------- Nothing Alien Tech Used ----------------- None Achievements -------------- Use The Force Challenges ------------ None Game ------ Seed HeatTerrorDeconstructor Manual? 0 Play Time 00:10:50 Cumulative 5.3 hours Start 2025.07.15 @ 14:52:55 End 2025.07.15 @ 15:02:17 Sessions 1 Manual Loads 0 Difficulty Rogue Special Mode None Game No. 21 Rogue 21 Adventurer 0 Explorer 0 Win Type - Total 0 Types 0/0/0/0/0/0/0/0/0/0 Lore% 4 Gallery% 11 Achievement% 11 Wizard Run 0 Options --------- Layout 1 ASCII 0 Keyboard 1 Movement Arrows Keybinds 0 Fullscreen 1 Font 24/Smallcaps Map View 25x17 Zoom Use 100% Tactical HUD 0 Map Filters NONE Filters NONE Steam 1 RUN: 2a84c608-91cd-4f47-9c63-495dc1df4749